[Event "57th Biel Festival ATO 2024"]
[Site "Biel"]
[Date "2024.07.16"]
[Round "1.28"]
[White "Fernandez Van Raap, Marcela"]
[Black "Kuenzi, Anton"]
[Result "0-1"]
[ECO "B10"]
[WhiteElo "1613"]
[BlackElo "1862"]
[Annotator "NA RC"]
[PlyCount "72"]
[EventDate "2024.07.03"]
[EventType "swiss"]
[EventCountry "SUI"]
[SourceTitle "playchess.com"]
[Source "ChessBase"]
[SourceQuality "1"]
[TimeControl "40/5400+30:1800+30"]

1. e4 {[%emt 0:00:19]} c6 {[%emt 0:00:11]} 2. c4 {[%emt 0:01:21]} d5 {[%emt 0:00:13]} 3. cxd5 {[%emt 0:00:56]} cxd5 {[%emt 0:00:14]} 4. e5 {[%emt 0:00:51]} a6 {[%emt 0:04:55]} 5. d4 {[%emt 0:01:23]} Nc6 {[%emt 0:00:16]} 6. Nc3 {[%emt 0:04:30]} Bf5 {[%emt 0:03:08]} 7. a3 {[%emt 0:03:26]} e6 {[%emt 0:00:26]} 8. Be3 {[%emt 0:10:13]} Qb6 {[%emt 0:01:28]} 9. Qd2 {[%emt 0:01:26]} Na5 {[%emt 0:08:04]} 10. Na4 {[%emt 0:01:16]} Qd8 {[%emt 0:00:37]} 11. Qd1 {[%emt 0:01:58]} b5 {[%emt 0:04:22]} 12. Nc5 {[%emt 0:05:29]} Bxc5 {[%emt 0:03:20]} 13. dxc5 {[%emt 0:02:07]} Nc4 {[%emt 0:10:24]} 14. Bd4 {[%emt 0:00:33]} Ne7 {[%emt 0:02:47]} 15. b3 {[%emt 0:03:34]} Qa5+ {[%emt 0:05:30]} 16. b4 {[%emt 0:00:47]} Qc7 {[%emt 0:01:19]} 17. Bxc4 {[%emt 0:02:43]} dxc4 {[%emt 0:00:13]} 18. Nf3 {[%emt 0:00:29]} Rd8 {[%emt 0:04:03]} 19. O-O {[%emt 0:05:05]} Nc6 {[%emt 0:02:29]} 20. Ra2 {[%emt 0:00:25]} Bd3 {[%emt 0:05:43]} 21. Ba1 {[%emt 0:05:30]} Bxf1 {[%emt 0:00:56]} 22. Qxf1 {[%emt 0:00:03]} O-O {[%emt 0:02:47]} 23. Qe1 {[%emt 0:04:26]} Rd3 {[%emt 0:01:34]} 24. h3 {[%emt 0:04:52]} Rfd8 {[%emt 0:01:00]} 25. Qe4 {[%emt 0:00:24]} h6 {[%emt 0:03:36]} 26. Ne1 {[%emt 0:02:45]} Rd1 {[%emt 0:01:02]} 27. Kh2 {[%emt 0:03:25]} R8d5 {[%emt 0:04:30]} 28. f4 {[%emt 0:00:37]} Qd7 {[%emt 0:00:19]} 29. Bc3 {[%emt 0:06:31]} Nd4 {[%emt 0:01:58]} 30. Qe3 {[%emt 0:05:04]} Nf5 {[%emt 0:01:09]} 31. Qf2 {[%emt 0:00:50]} h5 {[%emt 0:02:11]} 32. g4 {[%emt 0:00:43]} hxg4 {[%emt 0:00:29]} 33. hxg4 {[%emt 0:00:16]} Nh6 {[%emt 0:00:14]} 34. Qg3 {[%emt 0:02:13]} R5d3 {[%emt 0:03:39]} 35. Nxd3 {[%emt 0:00:41]} Kh7 {[%emt 0:00:47]} 36. Qg2 {[%emt 0:06:33]} g6 {[%emt 0:00:24]} 0-1

[Event "57th Biel Festival ATO 2024"]
[Site "Biel"]
[Date "2024.07.16"]
[Round "1.29"]
[White "Jaggy, Enzo"]
[Black "Huber, Ruth"]
[Result "1-0"]
[ECO "A48"]
[WhiteElo "1835"]
[BlackElo "1612"]
[Annotator "NA RC"]
[PlyCount "47"]
[EventDate "2024.07.03"]
[EventType "swiss"]
[EventCountry "SUI"]
[SourceTitle "playchess.com"]
[Source "ChessBase"]
[SourceQuality "1"]
[TimeControl "40/5400+30:1800+30"]

1. d4 {[%emt 0:00:18]} Nf6 {[%emt 0:03:01]} 2. Nf3 {[%emt 0:00:05]} g6 {[%emt 0:00:34]} 3. e3 {[%emt 0:01:12]} Bg7 {[%emt 0:00:25]} 4. Bc4 {[%emt 0:00:29]} O-O {[%emt 0:00:12]} 5. h3 {[%emt 0:00:17]} d6 {[%emt 0:01:30]} 6. Nbd2 {[%emt 0:01:15]} Nbd7 {[%emt 0:00:56]} 7. O-O {[%emt 0:00:18]} c6 {[%emt 0:00:51]} 8. Re1 {[%emt 0:02:23]} e5 {[%emt 0:00:48]} 9. dxe5 {[%emt 0:01:09]} Nxe5 {[%emt 0:00:28]} 10. Nxe5 {[%emt 0:00:07]} dxe5 {[%emt 0:00:21]} 11. e4 {[%emt 0:00:08]} Bd7 {[%emt 0:01:44]} 12. Nf3 {[%emt 0:00:15]} Ne8 {[%emt 0:01:31]} 13. Bg5 {[%emt 0:05:03]} Qc7 {[%emt 0:02:06]} 14. Be7 {[%emt 0:06:23]} Nd6 {[%emt 0:04:53]} 15. Bxf8 {[%emt 0:01:20]} Kxf8 {[%emt 0:00:36]} 16. Bd3 {[%emt 0:04:10]} Rd8 {[%emt 0:04:40]} 17. Qe2 {[%emt 0:02:55]} Be6 {[%emt 0:02:43]} 18. Ng5 {[%emt 0:03:24]} Bd7 {[%emt 0:10:04]} 19. Nxh7+ {[%emt 0:01:40]} Ke7 {[%emt 0:03:34]} 20. Ng5 {[%emt 0:01:23]} Ne8 {[%emt 0:01:54]} 21. Qe3 {[%emt 0:04:06]} Nf6 {[%emt 0:02:18]} 22. Bc4 {[%emt 0:02:18]} Bh6 {[%emt 0:03:08]} 23. Qc5+ {[%emt 0:00:47]} Ke8 {[%emt 0:02:03]} 24. Bxf7# {[%emt 0:00:21]} 1-0

[Event "57th Biel Festival ATO 2024"]
[Site "Biel"]
[Date "2024.07.16"]
[Round "1.30"]
[White "Harte, Bernd"]
[Black "Ernst, Heinz"]
[Result "1-0"]
[ECO "A00"]
[WhiteElo "1592"]
[BlackElo "1830"]
[Annotator "NA"]
[PlyCount "146"]
[EventDate "2024.07.03"]
[EventType "swiss"]
[EventCountry "SUI"]
[SourceTitle "playchess.com"]
[Source "ChessBase"]
[SourceQuality "1"]
[TimeControl "40/5400+30:1800+30"]

1. g4 {[%emt 0:00:06]} d5 {[%emt 0:00:21]} 2. Bg2 {[%emt 0:00:08]} c5 {[%emt 0:02:39]} 3. c4 {[%emt 0:01:13]} e6 {[%emt 0:01:02]} 4. Nc3 {[%emt 0:01:03]} dxc4 {[%emt 0:02:10]} 5. Qa4+ {[%emt 0:00:50]} Bd7 {[%emt 0:01:06]} 6. Qxc4 {[%emt 0:00:31]} Bc6 {[%emt 0:00:38]} 7. Bxc6+ {[%emt 0:01:54]} Nxc6 {[%emt 0:00:20]} 8. Qb5 {[%emt 0:00:58]} Qc7 {[%emt 0:04:31]} 9. Nf3 {[%emt 0:01:07]} a6 {[%emt 0:04:43]} 10. Qa4 {[%emt 0:01:12]} Nf6 {[%emt 0:05:02]} 11. g5 {[%emt 0:01:52]} Nd7 {[%emt 0:01:46]} 12. d4 {[%emt 0:01:22]} Nxd4 {[%emt 0:04:59]} 13. Nxd4 {[%emt 0:00:45]} cxd4 {[%emt 0:00:11]} 14. Qxd4 {[%emt 0:00:11]} Rd8 {[%emt 0:05:23]} 15. Qg4 {[%emt 0:05:23]} Bd6 {[%emt 0:03:14]} 16. f4 {[%emt 0:00:48]} Nb6 {[%emt 0:02:44]} 17. O-O {[%emt 0:03:55]} Bc5+ {[%emt 0:03:50]} 18. e3 {[%emt 0:00:51]} Nc4 {[%emt 0:06:39]} 19. Qe2 {[%emt 0:00:27]} Ba7 {[%emt 0:03:41]} 20. b3 {[%emt 0:01:08]} Nd6 {[%emt 0:05:20]} 21. Bb2 {[%emt 0:00:53]} O-O {[%emt 0:03:19]} 22. Rac1 {[%emt 0:00:42]} Qb8 {[%emt 0:05:12]} 23. Kg2 {[%emt 0:01:20]} Nf5 {[%emt 0:03:29]} 24. Nd1 {[%emt 0:01:47]} b5 {[%emt 0:04:06]} 25. Be5 {[%emt 0:01:17]} Qb7+ {[%emt 0:01:09]} 26. Kh3 {[%emt 0:00:38]} Rc8 {[%emt 0:06:43]} 27. Rxc8 {[%emt 0:03:55]} Rxc8 {[%emt 0:01:04]} 28. Qd3 {[%emt 0:02:52]} Qd5 {[%emt 0:04:31]} 29. Qxd5 {[%emt 0:01:03]} exd5 {[%emt 0:00:04]} 30. Re1 {[%emt 0:01:56]} b4 {[%emt 0:05:03]} 31. Kg4 {[%emt 0:00:58]} Ne7 {[%emt 0:03:01]} 32. Re2 {[%emt 0:02:12]} Ng6 {[%emt 0:04:37]} 33. Bd6 {[%emt 0:01:19]} a5 {[%emt 0:00:13]} 34. Rd2 {[%emt 0:00:15]} Rd8 {[%emt 0:02:39]} 35. Bc7 {[%emt 0:00:45]} Rd7 {[%emt 0:00:10]} 36. Bxa5 {[%emt 0:00:12]} Bc5 {[%emt 0:00:25]} 37. Rc2 {[%emt 0:00:28]} Bf8 {[%emt 0:01:05]} 38. Rc8 {[%emt 0:00:49]} Ne7 {[%emt 0:00:15]} 39. Rc7 {[%emt 0:01:19]} Rxc7 {[%emt 0:00:45]} 40. Bxc7 {[%emt 0:00:00]} f5+ {[%emt 0:00:00]} 41. gxf6 {[%emt 0:00:45]} gxf6 {[%emt 0:01:53]} 42. Bd6 {[%emt 0:00:50]} Nc6 {[%emt 0:02:08]} 43. Bxf8 {[%emt 0:00:23]} Kxf8 {[%emt 0:00:02]} 44. Kf5 {[%emt 0:00:24]} Kf7 {[%emt 0:00:11]} 45. Nb2 {[%emt 0:00:32]} Ne7+ {[%emt 0:00:53]} 46. Kg4 {[%emt 0:00:15]} Ke6 {[%emt 0:00:30]} 47. Nd3 {[%emt 0:00:18]} Nc6 {[%emt 0:00:19]} 48. f5+ {[%emt 0:01:28]} Kf7 {[%emt 0:02:57]} 49. Kf4 {[%emt 0:00:39]} Ke7 {[%emt 0:01:29]} 50. Ne1 {[%emt 0:03:35]} Ne5 {[%emt 0:03:59]} 51. Nc2 {[%emt 0:00:34]} Nd3+ {[%emt 0:03:34]} 52. Kf3 {[%emt 0:00:31]} Ne5+ {[%emt 0:00:07]} 53. Ke2 {[%emt 0:00:20]} Nc6 {[%emt 0:00:06]} 54. a3 {[%emt 0:00:16]} bxa3 {[%emt 0:00:47]} 55. Nxa3 {[%emt 0:00:08]} Kd6 {[%emt 0:01:24]} 56. Kd3 {[%emt 0:00:16]} Ke5 {[%emt 0:00:50]} 57. Nc2 {[%emt 0:00:25]} Kxf5 {[%emt 0:04:41]} 58. Nd4+ {[%emt 0:02:46]} Nxd4 {[%emt 0:00:31]} 59. Kxd4 {[%emt 0:00:18]} Ke6 {[%emt 0:00:06]} 60. e4 {[%emt 0:01:01]} dxe4 {[%emt 0:00:57]} 61. Kxe4 {[%emt 0:00:09]} h5 {[%emt 0:01:55]} 62. b4 {[%emt 0:00:11]} h4 {[%emt 0:00:27]} 63. h3 {[%emt 0:00:37]} f5+ {[%emt 0:01:40]} 64. Kf4 {[%emt 0:01:29]} Kf6 {[%emt 0:00:30]} 65. b5 {[%emt 0:00:16]} Ke6 {[%emt 0:00:01]} 66. b6 {[%emt 0:00:15]} Kd6 {[%emt 0:00:00]} 67. Kxf5 {[%emt 0:00:11]} Kc6 {[%emt 0:00:00]} 68. Kg4 {[%emt 0:00:10]} Kxb6 {[%emt 0:00:00]} 69. Kxh4 {[%emt 0:00:15]} Kc6 {[%emt 0:01:33]} 70. Kg5 {[%emt 0:00:07]} Kd7 {[%emt 0:03:33]} 71. Kg6 {[%emt 0:00:09]} Ke7 {[%emt 0:00:45]} 72. Kg7 {[%emt 0:00:33]} Ke6 {[%emt 0:00:31]} 73. h4 {[%emt 0:00:50]} Kf5 {[%emt 0:00:00]} 1-0

[Event "57th Biel Festival ATO 2024"]
[Site "Biel"]
[Date "2024.07.16"]
[Round "1.31"]
[White "Nergard, Ole-Kristian"]
[Black "Kim Rian B"]
[Result "1-0"]
[ECO "A25"]
[WhiteElo "1830"]
[BlackElo "1592"]
[Annotator "NA RC"]
[PlyCount "51"]
[EventDate "2024.07.03"]
[EventType "swiss"]
[EventCountry "SUI"]
[SourceTitle "playchess.com"]
[Source "ChessBase"]
[SourceQuality "1"]
[TimeControl "40/5400+30:1800+30"]

1. c4 {[%emt 0:00:04]} e5 {[%emt 0:00:43]} 2. g3 {[%emt 0:00:13]} Nc6 {[%emt 0:01:06]} 3. Bg2 {[%emt 0:00:20]} Nf6 {[%emt 0:01:12]} 4. Nc3 {[%emt 0:00:12]} Bc5 {[%emt 0:01:14]} 5. d3 {[%emt 0:00:19]} Ng4 {[%emt 0:01:14]} 6. e3 {[%emt 0:00:27]} d6 {[%emt 0:01:43]} 7. Nf3 {[%emt 0:04:51]} O-O {[%emt 0:06:03]} 8. O-O {[%emt 0:12:05]} f5 {[%emt 0:12:54]} 9. d4 {[%emt 0:00:30]} Bb4 {[%emt 0:00:30]} 10. h3 {[%emt 0:00:30]} Nf6 {[%emt 0:00:30]} 11. Nd5 {[%emt 0:00:30]} Nxd5 {[%emt 0:00:30]} 12. cxd5 {[%emt 0:00:30]} Ne7 {[%emt 0:00:30]} 13. dxe5 {[%emt 0:00:30]} dxe5 {[%emt 0:00:30]} 14. Nxe5 {[%emt 0:00:30]} Qd6 {[%emt 0:00:30]} 15. Nc4 {[%emt 0:00:30]} Qc5 {[%emt 0:00:30]} 16. Qd3 {[%emt 0:00:30]} Rd8 {[%emt 0:00:30]} 17. a3 {[%emt 0:01:27]} Ba5 {[%emt 0:03:33]} 18. b4 {[%emt 1:15:32]} Bxb4 {[%emt 1:05:48]} 19. axb4 {[%emt 0:00:30]} Qb5 {[%emt 0:00:30]} 20. Ra5 {[%emt 0:00:30]} Qd7 {[%emt 0:00:30]} 21. Bb2 {[%emt 0:00:30]} b6 {[%emt 0:00:30]} 22. Qc3 {[%emt 0:00:30]} Nxd5 {[%emt 0:00:30]} 23. Rxd5 {[%emt 0:00:30]} Qe7 {[%emt 0:00:30]} 24. Rxd8+ {[%emt 0:00:30]} Kf7 {[%emt 0:00:30]} 25. Qxg7+ {[%emt 0:00:30]} Ke6 {[%emt 0:00:30]} 26. Bd5# {[%emt 0:00:30]} 1-0

[Event "57th Biel Festival ATO 2024"]
[Site "Biel"]
[Date "2024.07.16"]
[Round "1.32"]
[White "Materia, Mario"]
[Black "Haas, Anthony"]
[Result "0-1"]
[ECO "D55"]
[WhiteElo "1590"]
[BlackElo "1824"]
[Annotator "NA"]
[PlyCount "150"]
[EventDate "2024.07.03"]
[EventType "swiss"]
[EventCountry "SUI"]
[SourceTitle "playchess.com"]
[Source "ChessBase"]
[SourceQuality "1"]
[TimeControl "40/5400+30:1800+30"]

1. d4 {[%emt 0:00:03]} d5 {[%emt 0:00:06]} 2. c4 {[%emt 0:00:19]} e6 {[%emt 0:00:05]} 3. Nc3 {[%emt 0:00:23]} Nf6 {[%emt 0:00:20]} 4. Bg5 {[%emt 0:00:46]} Be7 {[%emt 0:00:11]} 5. e3 {[%emt 0:00:48]} O-O {[%emt 0:00:26]} 6. Nf3 {[%emt 0:00:29]} h6 {[%emt 0:00:15]} 7. Bf4 {[%emt 0:00:35]} Bd6 {[%emt 0:03:04]} 8. Bxd6 {[%emt 0:00:52]} Qxd6 {[%emt 0:00:08]} 9. Bd3 {[%emt 0:00:51]} b6 {[%emt 0:01:44]} 10. O-O {[%emt 0:03:14]} Bb7 {[%emt 0:01:24]} 11. Rc1 {[%emt 0:02:30]} c5 {[%emt 0:04:21]} 12. Qe2 {[%emt 0:02:15]} Nbd7 {[%emt 0:04:26]} 13. Rfd1 {[%emt 0:01:20]} Qe7 {[%emt 0:04:48]} 14. e4 {[%emt 0:07:32]} dxe4 {[%emt 0:10:20]} 15. Nxe4 {[%emt 0:02:22]} Rfd8 {[%emt 0:03:31]} 16. dxc5 {[%emt 0:04:30]} Nxc5 {[%emt 0:01:30]} 17. Nxc5 {[%emt 0:04:05]} Qxc5 {[%emt 0:00:13]} 18. a3 {[%emt 0:00:56]} a5 {[%emt 0:00:44]} 19. Qe5 {[%emt 0:06:01]} Bxf3 {[%emt 0:07:09]} 20. Qxc5 {[%emt 0:00:07]} bxc5 {[%emt 0:00:07]} 21. gxf3 {[%emt 0:00:06]} Rab8 {[%emt 0:00:15]} 22. Rc2 {[%emt 0:00:56]} Kf8 {[%emt 0:01:45]} 23. Rcd2 {[%emt 0:01:15]} Rd4 {[%emt 0:03:18]} 24. Be2 {[%emt 0:01:40]} e5 {[%emt 0:04:46]} 25. Rxd4 {[%emt 0:01:37]} exd4 {[%emt 0:00:18]} 26. Rd2 {[%emt 0:00:07]} g5 {[%emt 0:02:39]} 27. Kg2 {[%emt 0:02:06]} Nh5 {[%emt 0:06:06]} 28. Bd1 {[%emt 0:01:31]} Nf4+ {[%emt 0:03:20]} 29. Kg3 {[%emt 0:00:36]} f5 {[%emt 0:07:50]} 30. h4 {[%emt 0:01:13]} Rb6 {[%emt 0:02:45]} 31. Ba4 {[%emt 0:00:41]} Re6 {[%emt 0:05:36]} 32. Bd7 {[%emt 0:05:11]} Re2 {[%emt 0:00:27]} 33. Rxe2 {[%emt 0:01:05]} Nxe2+ {[%emt 0:00:02]} 34. Kg2 {[%emt 0:00:16]} Nf4+ {[%emt 0:03:31]} 35. Kf1 {[%emt 0:02:05]} Nd3 {[%emt 0:01:32]} 36. hxg5 {[%emt 0:00:33]} hxg5 {[%emt 0:01:00]} 37. Bxf5 {[%emt 0:00:39]} Nxb2 {[%emt 0:00:11]} 38. Be6 {[%emt 0:00:08]} Ke7 {[%emt 0:00:23]} 39. Bd5 {[%emt 0:00:07]} Nd3 {[%emt 0:00:33]} 40. Be4 {[%emt 0:00:00]} Nf4 {[%emt 0:00:00]} 41. Ke1 {[%emt 0:00:58]} Kd6 {[%emt 0:02:27]} 42. Kd2 {[%emt 0:00:57]} Ke5 {[%emt 0:01:30]} 43. Bc6 {[%emt 0:00:24]} Nh3 {[%emt 0:06:39]} 44. Ke2 {[%emt 0:01:14]} Kf4 {[%emt 0:05:06]} 45. Kf1 {[%emt 0:02:47]} Ke5 {[%emt 0:00:03]} 46. Ke2 {[%emt 0:00:14]} Nf4+ {[%emt 0:00:26]} 47. Kd2 {[%emt 0:00:51]} Ng6 {[%emt 0:00:48]} 48. Be4 {[%emt 0:00:48]} Nh4 {[%emt 0:01:48]} 49. Bc6 {[%emt 0:05:11]} Kf4 {[%emt 0:00:55]} 50. Ke2 {[%emt 0:01:09]} Ng6 {[%emt 0:00:25]} 51. Bb7 {[%emt 0:02:05]} Ne5 {[%emt 0:00:31]} 52. Bd5 {[%emt 0:00:37]} a4 {[%emt 0:00:23]} 53. Kd2 {[%emt 0:01:12]} Nxf3+ {[%emt 0:00:12]} 54. Ke2 {[%emt 0:00:14]} Ne5 {[%emt 0:00:24]} 55. Kd2 {[%emt 0:00:13]} Ng4 {[%emt 0:01:07]} 56. Ke2 {[%emt 0:00:08]} d3+ {[%emt 0:01:29]} 57. Kxd3 {[%emt 0:00:08]} Nxf2+ {[%emt 0:00:05]} 58. Ke2 {[%emt 0:00:12]} Ne4 {[%emt 0:00:27]} 59. Bc6 {[%emt 0:00:13]} g4 {[%emt 0:01:00]} 60. Kf1 {[%emt 0:00:18]} Nd2+ {[%emt 0:00:10]} 61. Kg2 {[%emt 0:00:09]} Nxc4 {[%emt 0:00:17]} 62. Bxa4 {[%emt 0:00:04]} Nxa3 {[%emt 0:00:06]} 63. Bb3 {[%emt 0:00:16]} c4 {[%emt 0:00:09]} 64. Bxc4 {[%emt 0:00:03]} Nxc4 {[%emt 0:00:08]} 65. Kf2 {[%emt 0:00:29]} g3+ {[%emt 0:00:18]} 66. Kg2 {[%emt 0:00:04]} Ne3+ {[%emt 0:00:18]} 67. Kg1 {[%emt 0:00:11]} Kf3 {[%emt 0:00:18]} 68. Kh1 {[%emt 0:00:04]} g2+ {[%emt 0:00:13]} 69. Kg1 {[%emt 0:00:12]} Nc2 {[%emt 0:00:05]} 70. Kh2 {[%emt 0:00:05]} Kf2 {[%emt 0:00:12]} 71. Kh3 {[%emt 0:00:03]} g1=Q {[%emt 0:00:21]} 72. Kh4 {[%emt 0:00:04]} Nd4 {[%emt 0:00:12]} 73. Kh5 {[%emt 0:00:05]} Ne6 {[%emt 0:00:16]} 74. Kh6 {[%emt 0:00:11]} Qg7+ {[%emt 0:00:09]} 75. Kh5 {[%emt 0:00:06]} Qg5# {[%emt 0:00:07]} 0-1

[Event "57th Biel Festival ATO 2024"]
[Site "Biel"]
[Date "2024.07.16"]
[Round "1.33"]
[White "Kern, Jesper"]
[Black "Galopin, Clement"]
[Result "0-1"]
[ECO "E30"]
[WhiteElo "1569"]
[BlackElo "1816"]
[Annotator "NA"]
[PlyCount "120"]
[EventDate "2024.07.03"]
[EventType "swiss"]
[EventCountry "SUI"]
[SourceTitle "playchess.com"]
[Source "ChessBase"]
[SourceQuality "1"]
[TimeControl "40/5400+30:1800+30"]

1. d4 {[%emt 0:00:04]} Nf6 {[%emt 0:00:01]} 2. c4 {[%emt 0:00:16]} e6 {[%emt 0:00:02]} 3. Nc3 {[%emt 0:00:15]} Bb4 {[%emt 0:00:02]} 4. Bg5 {[%emt 0:01:15]} h6 {[%emt 0:00:15]} 5. Bf4 {[%emt 0:00:42]} O-O {[%emt 0:02:38]} 6. e3 {[%emt 0:00:25]} b6 {[%emt 0:00:17]} 7. Bd3 {[%emt 0:02:06]} Bxc3+ {[%emt 0:00:22]} 8. bxc3 {[%emt 0:00:20]} Bb7 {[%emt 0:00:08]} 9. Nf3 {[%emt 0:00:17]} d6 {[%emt 0:00:16]} 10. O-O {[%emt 0:01:31]} c5 {[%emt 0:04:23]} 11. Rc1 {[%emt 0:03:05]} Nc6 {[%emt 0:01:31]} 12. a3 {[%emt 0:02:02]} Rc8 {[%emt 0:03:46]} 13. Qe2 {[%emt 0:00:39]} Nh5 {[%emt 0:03:08]} 14. Bg3 {[%emt 0:01:54]} Nxg3 {[%emt 0:00:08]} 15. hxg3 {[%emt 0:00:18]} Qe7 {[%emt 0:00:52]} 16. Rc2 {[%emt 0:00:44]} Na5 {[%emt 0:01:59]} 17. Rb2 {[%emt 0:00:49]} Ba6 {[%emt 0:01:11]} 18. Rfb1 {[%emt 0:02:05]} cxd4 {[%emt 0:01:18]} 19. cxd4 {[%emt 0:01:21]} Bxc4 {[%emt 0:00:19]} 20. Bxc4 {[%emt 0:01:40]} Nxc4 {[%emt 0:00:51]} 21. Rb4 {[%emt 0:04:05]} d5 {[%emt 0:03:11]} 22. Ne5 {[%emt 0:01:59]} Nxe5 {[%emt 0:00:36]} 23. dxe5 {[%emt 0:00:10]} Rc5 {[%emt 0:03:26]} 24. a4 {[%emt 0:01:57]} Rfc8 {[%emt 0:03:51]} 25. Qd2 {[%emt 0:00:53]} Qc7 {[%emt 0:00:56]} 26. f4 {[%emt 0:01:18]} Rc2 {[%emt 0:06:49]} 27. Qd1 {[%emt 0:00:45]} Qc3 {[%emt 0:02:17]} 28. R4b3 {[%emt 0:01:49]} Qd2 {[%emt 0:01:13]} 29. Qxd2 {[%emt 0:02:15]} Rxd2 {[%emt 0:00:30]} 30. R3b2 {[%emt 0:00:30]} Rcc2 {[%emt 0:00:16]} 31. Rxc2 {[%emt 0:00:56]} Rxc2 {[%emt 0:00:31]} 32. Ra1 {[%emt 0:01:47]} Re2 {[%emt 0:00:02]} 33. Ra3 {[%emt 0:00:26]} Rc2 {[%emt 0:01:07]} 34. Kh2 {[%emt 0:00:34]} h5 {[%emt 0:00:59]} 35. Kh3 {[%emt 0:02:18]} Kh7 {[%emt 0:00:47]} 36. a5 {[%emt 0:06:04]} b5 {[%emt 0:00:37]} 37. a6 {[%emt 0:00:33]} b4 {[%emt 0:02:58]} 38. Rb3 {[%emt 0:00:51]} Rc4 {[%emt 0:00:34]} 39. Kh4 {[%emt 0:04:39]} Kh6 {[%emt 0:02:53]} 40. g4 {[%emt 0:01:38]} hxg4 {[%emt 0:00:48]} 41. Kxg4 {[%emt 0:00:24]} Kh7 {[%emt 0:06:46]} 42. Kf3 {[%emt 0:12:01]} Kg8 {[%emt 0:02:48]} 43. Kg4 {[%emt 0:00:14]} Kf8 {[%emt 0:00:22]} 44. Kh5 {[%emt 0:00:09]} Ke7 {[%emt 0:07:03]} 45. g4 {[%emt 0:01:40]} d4 {[%emt 0:00:42]} 46. exd4 {[%emt 0:03:56]} Rxd4 {[%emt 0:00:08]} 47. f5 {[%emt 0:00:24]} Re4 {[%emt 0:05:46]} 48. Kg5 {[%emt 0:01:28]} f6+ {[%emt 0:01:01]} 49. exf6+ {[%emt 0:00:24]} gxf6+ {[%emt 0:00:02]} 50. Kh5 {[%emt 0:00:57]} Rd4 {[%emt 0:08:00]} 51. fxe6 {[%emt 0:02:00]} Rd5+ {[%emt 0:00:57]} 52. Kh4 {[%emt 0:02:07]} Rb5 {[%emt 0:00:32]} 53. Kg3 {[%emt 0:02:38]} Kxe6 {[%emt 0:00:17]} 54. Kf4 {[%emt 0:01:37]} Kd5 {[%emt 0:02:12]} 55. Ke3 {[%emt 0:01:18]} Kc4 {[%emt 0:00:29]} 56. Rb1 {[%emt 0:00:15]} Rb6 {[%emt 0:04:41]} 57. Kd2 {[%emt 0:01:47]} Rxa6 {[%emt 0:01:22]} 58. Kc2 {[%emt 0:00:17]} Ra2+ {[%emt 0:00:16]} 59. Kc1 {[%emt 0:00:24]} Rg2 {[%emt 0:00:12]} 60. Ra1 {[%emt 0:00:34]} Rg1+ {[%emt 0:00:05]} 0-1

[Event "57th Biel Festival ATO 2024"]
[Site "Biel"]
[Date "2024.07.16"]
[Round "1.34"]
[White "Noh, Jinwoo"]
[Black "Ahn, Taehyun"]
[Result "1-0"]
[ECO "A53"]
[WhiteElo "1824"]
[BlackElo "1583"]
[Annotator "NA"]
[PlyCount "99"]
[EventDate "2024.07.03"]
[EventType "swiss"]
[EventCountry "SUI"]
[SourceTitle "playchess.com"]
[Source "ChessBase"]
[SourceQuality "1"]
[TimeControl "40/5400+30:1800+30"]

1. d4 {[%emt 0:00:36]} Nf6 {[%emt 0:00:48]} 2. Nf3 {[%emt 0:01:32]} d6 {[%emt 0:00:40]} 3. c4 {[%emt 0:01:53]} Nbd7 {[%emt 0:00:29]} 4. Nc3 {[%emt 0:00:47]} c6 {[%emt 0:02:37]} 5. e3 {[%emt 0:01:57]} Qc7 {[%emt 0:02:37]} 6. Be2 {[%emt 0:03:43]} e5 {[%emt 0:09:58]} 7. O-O {[%emt 0:01:01]} Be7 {[%emt 0:10:23]} 8. b3 {[%emt 0:02:20]} O-O {[%emt 0:02:25]} 9. Ba3 {[%emt 0:06:24]} Nb6 {[%emt 0:09:54]} 10. Rc1 {[%emt 0:01:26]} Rd8 {[%emt 0:08:28]} 11. Qc2 {[%emt 0:01:41]} h6 {[%emt 0:10:39]} 12. h3 {[%emt 0:01:32]} Be6 {[%emt 0:02:54]} 13. Rfd1 {[%emt 0:02:50]} Rd7 {[%emt 0:04:39]} 14. Qb1 {[%emt 0:01:34]} Rad8 {[%emt 0:02:12]} 15. Nd5 {[%emt 0:00:18]} Nbxd5 {[%emt 0:01:44]} 16. cxd5 {[%emt 0:00:12]} Bxd5 {[%emt 0:00:19]} 17. Bb2 {[%emt 0:01:30]} Be4 {[%emt 0:01:13]} 18. Qa1 {[%emt 0:00:10]} exd4 {[%emt 0:01:14]} 19. Bxd4 {[%emt 0:00:29]} c5 {[%emt 0:01:26]} 20. Bc3 {[%emt 0:03:02]} Bc6 {[%emt 0:02:16]} 21. Nd2 {[%emt 0:01:29]} b5 {[%emt 0:01:44]} 22. a4 {[%emt 0:00:24]} a6 {[%emt 0:00:20]} 23. axb5 {[%emt 0:00:14]} axb5 {[%emt 0:03:20]} 24. Ba5 {[%emt 0:00:08]} Ra8 {[%emt 0:00:56]} 25. Bxc7 {[%emt 0:00:12]} Rxa1 {[%emt 0:00:02]} 26. Rxa1 {[%emt 0:00:12]} Rxc7 {[%emt 0:00:28]} 27. Ra5 {[%emt 0:00:21]} Rb7 {[%emt 0:02:06]} 28. Rda1 {[%emt 0:00:20]} Bd8 {[%emt 0:06:46]} 29. Ra8 {[%emt 0:03:42]} Rd7 {[%emt 0:00:42]} 30. Rc8 {[%emt 0:00:05]} Bb7 {[%emt 0:01:40]} 31. Rb8 {[%emt 0:00:09]} b4 {[%emt 0:03:14]} 32. Bb5 {[%emt 0:00:22]} Rc7 {[%emt 0:04:44]} 33. Rxd8+ {[%emt 0:00:36]} Kh7 {[%emt 0:00:14]} 34. Bd3+ {[%emt 0:00:33]} g6 {[%emt 0:00:39]} 35. Rxd6 {[%emt 0:00:08]} Kg7 {[%emt 0:00:37]} 36. Ra7 {[%emt 0:00:18]} Nd7 {[%emt 0:03:01]} 37. Be4 {[%emt 0:00:25]} Bxe4 {[%emt 0:00:56]} 38. Rxc7 {[%emt 0:00:10]} Nf6 {[%emt 0:00:14]} 39. Rxf6 {[%emt 0:00:07]} Kxf6 {[%emt 0:00:10]} 40. Nxe4+ {[%emt 0:00:00]} Kg7 {[%emt 0:00:00]} 41. Rxc5 {[%emt 0:00:40]} Kh7 {[%emt 0:03:19]} 42. g4 {[%emt 0:00:23]} g5 {[%emt 0:00:37]} 43. f4 {[%emt 0:00:15]} gxf4 {[%emt 0:01:41]} 44. exf4 {[%emt 0:00:08]} Kg6 {[%emt 0:01:04]} 45. f5+ {[%emt 0:00:45]} Kg7 {[%emt 0:00:20]} 46. Rc7 {[%emt 0:00:08]} Kf8 {[%emt 0:01:12]} 47. f6 {[%emt 0:00:06]} Kg8 {[%emt 0:00:43]} 48. g5 {[%emt 0:00:13]} h5 {[%emt 0:01:08]} 49. g6 {[%emt 0:00:10]} fxg6 {[%emt 0:01:06]} 50. Ng5 {[%emt 0:00:07]} 1-0